[Event "*** Titled Tuesday Blitz"]
[Site "Chess.com"]
[Date "2020.12.29"]
[Round "8"]
[White "norwaytoadog"]
[Black "zurzan"]
[Result "1/2-1/2"]
[WhiteElo "2181"]
[BlackElo "2052"]
[TimeControl "180+1"]
[EndTime "11:28:28 PST"]
[Termination "Game drawn - insufficient material"]

1. e4 {[%clk 0:02:31]} 1... Nf6 {[%clk 0:02:54.4]} 2. e5 {[%clk 0:02:29.9]} 2...
Nd5 {[%clk 0:02:54.5]} 3. d4 {[%clk 0:02:29]} 3... d6 {[%clk 0:02:54.5]} 4. Nf3
{[%clk 0:02:29.2]} 4... g6 {[%clk 0:02:53.6]} 5. Bc4 {[%clk 0:02:28.7]} 5... Nb6
{[%clk 0:02:53.1]} 6. Bb3 {[%clk 0:02:29]} 6... Bg7 {[%clk 0:02:52.9]} 7. Qe2
{[%clk 0:02:28.3]} 7... O-O {[%clk 0:02:51.6]} 8. O-O {[%clk 0:02:26.8]} 8...
dxe5 {[%clk 0:02:49.8]} 9. dxe5 {[%clk 0:02:26.1]} 9... Nc6 {[%clk 0:02:49.3]}
10. Rd1 {[%clk 0:02:25.1]} 10... Qe8 {[%clk 0:02:48.8]} 11. a4 {[%clk 0:02:24]}
11... Bg4 {[%clk 0:02:47.1]} 12. a5 {[%clk 0:02:20.1]} 12... Nd7 {[%clk
0:02:46.1]} 13. e6 {[%clk 0:02:04.2]} 13... Nde5 {[%clk 0:02:45.3]} 14. exf7+
{[%clk 0:01:58.8]} 14... Nxf7 {[%clk 0:02:44.4]} 15. h3 {[%clk 0:01:25.4]} 15...
Bxf3 {[%clk 0:02:41.7]} 16. Qxf3 {[%clk 0:01:23.3]} 16... Kh8 {[%clk 0:02:40.3]}
17. c3 {[%clk 0:01:15.4]} 17... e5 {[%clk 0:02:37.4]} 18. Be3 {[%clk 0:01:09.7]}
18... e4 {[%clk 0:02:35.5]} 19. Qg4 {[%clk 0:00:57.1]} 19... Nh6 {[%clk
0:02:07.8]} 20. Qd7 {[%clk 0:00:53.5]} 20... Qe5 {[%clk 0:01:49]} 21. Qd5 {[%clk
0:00:49.6]} 21... Qf6 {[%clk 0:01:40.3]} 22. a6 {[%clk 0:00:48.4]} 22... Rad8
{[%clk 0:01:39.4]} 23. Qc4 {[%clk 0:00:45.4]} 23... Rxd1+ {[%clk 0:01:38.4]} 24.
Bxd1 {[%clk 0:00:45.4]} 24... bxa6 {[%clk 0:01:23]} 25. Rxa6 {[%clk 0:00:43.5]}
25... Ne5 {[%clk 0:01:16.2]} 26. Rxf6 {[%clk 0:00:43.2]} 26... Nxc4 {[%clk
0:01:16]} 27. Rxf8+ {[%clk 0:00:40.9]} 27... Bxf8 {[%clk 0:01:16.3]} 28. Bd4+
{[%clk 0:00:41.1]} 28... Bg7 {[%clk 0:01:12.7]} 29. Be2 {[%clk 0:00:38.8]} 29...
Nxb2 {[%clk 0:01:11]} 30. Bxa7 {[%clk 0:00:38.2]} 30... Nd3 {[%clk 0:01:07.5]}
31. Kf1 {[%clk 0:00:35.9]} 31... Nf5 {[%clk 0:01:04.2]} 32. Bxd3 {[%clk
0:00:34.3]} 32... exd3 {[%clk 0:01:04.1]} 33. Ke1 {[%clk 0:00:34.7]} 33... Nh4
{[%clk 0:00:58.2]} 34. Kd2 {[%clk 0:00:25.7]} 34... Nxg2 {[%clk 0:00:57.3]} 35.
Kxd3 {[%clk 0:00:25.7]} 35... Nf4+ {[%clk 0:00:57.4]} 36. Ke4 {[%clk 0:00:25.7]}
36... Nxh3 {[%clk 0:00:58.3]} 37. c4 {[%clk 0:00:23.7]} 37... h5 {[%clk
0:00:56]} 38. Nd2 {[%clk 0:00:23.6]} 38... Kg8 {[%clk 0:00:46]} 39. Nf3 {[%clk
0:00:23.4]} 39... Kf7 {[%clk 0:00:45.3]} 40. Be3 {[%clk 0:00:22.6]} 40... Ke6
{[%clk 0:00:42]} 41. c5 {[%clk 0:00:21.4]} 41... Bf6 {[%clk 0:00:39]} 42. Bh6
{[%clk 0:00:14.5]} 42... Nxf2+ {[%clk 0:00:37.8]} 43. Kf4 {[%clk 0:00:12.9]}
43... Ng4 {[%clk 0:00:37.4]} 44. Bg5 {[%clk 0:00:12.1]} 44... Bxg5+ {[%clk
0:00:37.5]} 45. Kxg5 {[%clk 0:00:12]} 45... Kd5 {[%clk 0:00:38.2]} 46. Kxg6
{[%clk 0:00:12.1]} 46... Kxc5 {[%clk 0:00:35.6]} 47. Kxh5 {[%clk 0:00:12.4]}
47... Ne3 {[%clk 0:00:34.7]} 48. Kg5 {[%clk 0:00:12.4]} 48... Kd5 {[%clk
0:00:31.6]} 49. Kf4 {[%clk 0:00:12.5]} 49... Nd1 {[%clk 0:00:29.5]} 50. Nd2
{[%clk 0:00:11.7]} 50... c5 {[%clk 0:00:28.7]} 51. Kf3 {[%clk 0:00:11.2]} 51...
Nb2 {[%clk 0:00:25.7]} 52. Ke2 {[%clk 0:00:10.5]} 52... Nc4 {[%clk 0:00:24.9]}
53. Nb3 {[%clk 0:00:10]} 53... Ne5 {[%clk 0:00:21.5]} 54. Nxc5 {[%clk
0:00:09.8]} 1/2-1/2

[Event "*** Titled Tuesday Blitz"]
[Site "Chess.com"]
[Date "2020.12.29"]
[Round "8"]
[White "Ladislav1969"]
[Black "vrekhson"]
[Result "1/2-1/2"]
[WhiteElo "2396"]
[BlackElo "2247"]
[TimeControl "180+1"]
[EndTime "11:28:29 PST"]
[Termination "Game drawn - insufficient material"]

1. e4 {[%clk 0:03:00.9]} 1... c5 {[%clk 0:02:59.5]} 2. d4 {[%clk 0:03:00.7]}
2... cxd4 {[%clk 0:02:59.3]} 3. c3 {[%clk 0:03:01.6]} 3... d5 {[%clk 0:02:56.2]}
4. exd5 {[%clk 0:03:00.2]} 4... Qxd5 {[%clk 0:02:56.6]} 5. cxd4 {[%clk
0:03:00.4]} 5... Nf6 {[%clk 0:02:56.9]} 6. Nc3 {[%clk 0:02:59.7]} 6... Qd6
{[%clk 0:02:55.9]} 7. Nf3 {[%clk 0:02:52.3]} 7... Bg4 {[%clk 0:02:55.7]} 8. Be2
{[%clk 0:02:50.8]} 8... e6 {[%clk 0:02:54.6]} 9. O-O {[%clk 0:02:47.1]} 9... Nc6
{[%clk 0:02:54.5]} 10. Be3 {[%clk 0:02:42.7]} 10... Be7 {[%clk 0:02:52.9]} 11.
Rc1 {[%clk 0:02:42.3]} 11... O-O {[%clk 0:02:50.7]} 12. a3 {[%clk 0:02:42.2]}
12... Rfd8 {[%clk 0:02:49.7]} 13. h3 {[%clk 0:02:42]} 13... Bh5 {[%clk
0:02:49.5]} 14. Qa4 {[%clk 0:02:32.1]} 14... Rac8 {[%clk 0:02:42.6]} 15. Rfd1
{[%clk 0:02:31.3]} 15... Nd5 {[%clk 0:02:39.9]} 16. Nxd5 {[%clk 0:02:19.2]}
16... Qxd5 {[%clk 0:02:40.8]} 17. Rc5 {[%clk 0:02:18.7]} 17... Bxc5 {[%clk
0:02:30.6]} 18. dxc5 {[%clk 0:02:19]} 18... Qa2 {[%clk 0:02:20.3]} 19. Rxd8+
{[%clk 0:01:53.6]} 19... Rxd8 {[%clk 0:02:21.2]} 20. Qb5 {[%clk 0:01:52.6]}
20... Rd7 {[%clk 0:02:03.1]} 21. Kh2 {[%clk 0:01:34.7]} 21... Qb1 {[%clk
0:02:00.9]} 22. b4 {[%clk 0:01:22.1]} 22... Bg6 {[%clk 0:01:45]} 23. Qc4 {[%clk
0:01:01]} 23... Bd3 {[%clk 0:01:40.6]} 24. Bxd3 {[%clk 0:00:57.4]} 24... Qxd3
{[%clk 0:01:41.5]} 25. Qf4 {[%clk 0:00:42.4]} 25... f6 {[%clk 0:01:28.6]} 26. a4
{[%clk 0:00:34.7]} 26... e5 {[%clk 0:01:27.9]} 27. Qg4 {[%clk 0:00:33.8]} 27...
Ne7 {[%clk 0:01:11.6]} 28. Qe6+ {[%clk 0:00:27.3]} 28... Kf8 {[%clk 0:01:10.8]}
29. Bh6 {[%clk 0:00:10.7]} 29... Qd5 {[%clk 0:01:06.2]} 30. Qxf6+ {[%clk
0:00:10.6]} 30... Ke8 {[%clk 0:01:02.7]} 31. Bxg7 {[%clk 0:00:09.3]} 31... Ng6
{[%clk 0:00:56.5]} 32. Nxe5 {[%clk 0:00:08.7]} 32... Qxe5+ {[%clk 0:00:52.9]}
33. Qxe5+ {[%clk 0:00:08.9]} 33... Nxe5 {[%clk 0:00:52.7]} 34. Bxe5 {[%clk
0:00:09.8]} 34... a5 {[%clk 0:00:48.1]} 35. bxa5 {[%clk 0:00:08.8]} 35... Rd5
{[%clk 0:00:48.1]} 36. Bc7 {[%clk 0:00:08.1]} 36... Rxc5 {[%clk 0:00:46.5]} 37.
Bb6 {[%clk 0:00:08.1]} 37... Rc4 {[%clk 0:00:46.8]} 38. g4 {[%clk 0:00:08.4]}
38... Rxa4 {[%clk 0:00:46.5]} 39. Kg3 {[%clk 0:00:09.3]} 39... Kf7 {[%clk
0:00:46.5]} 40. f4 {[%clk 0:00:09.2]} 40... Ra3+ {[%clk 0:00:41.9]} 41. Kh4
{[%clk 0:00:09]} 41... Rb3 {[%clk 0:00:38.8]} 42. g5 {[%clk 0:00:09.2]} 42...
Kg6 {[%clk 0:00:38.1]} 43. Kg4 {[%clk 0:00:09.5]} 43... Rb4 {[%clk 0:00:34.9]}
44. h4 {[%clk 0:00:09]} 44... h5+ {[%clk 0:00:34.3]} 45. gxh6 {[%clk 0:00:09.3]}
45... Kxh6 {[%clk 0:00:34.3]} 46. Kf5 {[%clk 0:00:09.7]} 46... Kh5 {[%clk
0:00:32.7]} 47. Ke6 {[%clk 0:00:09.1]} 47... Rxf4 {[%clk 0:00:28.4]} 48. Bc7
{[%clk 0:00:07.3]} 48... Rxh4 {[%clk 0:00:24.5]} 49. Kd7 {[%clk 0:00:07.5]}
49... Rb4 {[%clk 0:00:18]} 50. Kc8 {[%clk 0:00:05.8]} 50... Kg6 {[%clk
0:00:16.8]} 51. Bb6 {[%clk 0:00:05.9]} 51... Kf7 {[%clk 0:00:15.7]} 52. Kxb7
{[%clk 0:00:06.3]} 52... Ra4 {[%clk 0:00:15.5]} 53. a6 {[%clk 0:00:06.7]} 53...
Ke6 {[%clk 0:00:15.7]} 54. a7 {[%clk 0:00:07]} 54... Rxa7+ {[%clk 0:00:15.3]}
55. Kxa7 {[%clk 0:00:06.6]} 1/2-1/2

[Event "*** Titled Tuesday Blitz"]
[Site "Chess.com"]
[Date "2020.12.29"]
[Round "8"]
[White "guillembaches"]
[Black "Morshynska"]
[Result "1/2-1/2"]
[WhiteElo "2461"]
[BlackElo "2239"]
[TimeControl "180+1"]
[EndTime "11:28:30 PST"]
[Termination "Game drawn - insufficient material"]

1. e4 {[%clk 0:03:00.9]} 1... e5 {[%clk 0:02:59.7]} 2. Nf3 {[%clk 0:03:00.4]}
2... Nc6 {[%clk 0:02:59.9]} 3. Nc3 {[%clk 0:03:00.8]} 3... Nf6 {[%clk
0:02:58.1]} 4. d4 {[%clk 0:03:01]} 4... Bb4 {[%clk 0:02:57.5]} 5. Nxe5 {[%clk
0:03:00.8]} 5... Qe7 {[%clk 0:02:55.5]} 6. Qd3 {[%clk 0:02:58.5]} 6... Nxe5
{[%clk 0:02:46.8]} 7. dxe5 {[%clk 0:02:52]} 7... Qxe5 {[%clk 0:02:47.7]} 8. Bd2
{[%clk 0:02:47.2]} 8... Bxc3 {[%clk 0:01:53.9]} 9. Bxc3 {[%clk 0:02:43.2]} 9...
Qxe4+ {[%clk 0:01:54.4]} 10. Qxe4+ {[%clk 0:02:39.5]} 10... Nxe4 {[%clk
0:01:55.3]} 11. Bxg7 {[%clk 0:02:38.6]} 11... Rg8 {[%clk 0:01:55.2]} 12. Bh6
{[%clk 0:02:29.9]} 12... d5 {[%clk 0:01:53.5]} 13. f3 {[%clk 0:02:21.8]} 13...
Nc5 {[%clk 0:01:37.4]} 14. Kf2 {[%clk 0:02:20.5]} 14... Bf5 {[%clk 0:01:32.9]}
15. Be3 {[%clk 0:02:06.1]} 15... Ne6 {[%clk 0:01:24.3]} 16. c3 {[%clk
0:02:02.6]} 16... a6 {[%clk 0:01:13.4]} 17. g4 {[%clk 0:01:45.7]} 17... Bg6
{[%clk 0:01:12.8]} 18. h4 {[%clk 0:01:45.6]} 18... h5 {[%clk 0:01:09.8]} 19. Bh3
{[%clk 0:01:42.4]} 19... O-O-O {[%clk 0:01:00.7]} 20. Rhg1 {[%clk 0:01:32.1]}
20... Kb8 {[%clk 0:00:59.9]} 21. Rad1 {[%clk 0:01:28.5]} 21... b6 {[%clk
0:00:49.1]} 22. gxh5 {[%clk 0:01:21.7]} 22... Bxh5 {[%clk 0:00:50]} 23. Rxg8
{[%clk 0:01:20.2]} 23... Rxg8 {[%clk 0:00:50.9]} 24. Rxd5 {[%clk 0:01:18.8]}
24... Rh8 {[%clk 0:00:44.7]} 25. a4 {[%clk 0:00:56.7]} 25... a5 {[%clk
0:00:43.9]} 26. b4 {[%clk 0:00:55.4]} 26... axb4 {[%clk 0:00:44.8]} 27. cxb4
{[%clk 0:00:55.7]} 27... Kb7 {[%clk 0:00:44.8]} 28. a5 {[%clk 0:00:54.3]} 28...
Bg6 {[%clk 0:00:39.6]} 29. Bxe6 {[%clk 0:00:34.9]} 29... fxe6 {[%clk 0:00:39]}
30. Rg5 {[%clk 0:00:32.9]} 30... Bc2 {[%clk 0:00:22.5]} 31. axb6 {[%clk
0:00:30.6]} 31... cxb6 {[%clk 0:00:23.4]} 32. Rb5 {[%clk 0:00:30.5]} 32... Rxh4
{[%clk 0:00:16.9]} 33. Rxb6+ {[%clk 0:00:30.5]} 33... Kc7 {[%clk 0:00:17]} 34.
b5 {[%clk 0:00:23.9]} 34... Bb3 {[%clk 0:00:14.5]} 35. Rc6+ {[%clk 0:00:20.7]}
35... Kb7 {[%clk 0:00:13.7]} 36. Rc3 {[%clk 0:00:20.6]} 36... Bd5 {[%clk
0:00:13.4]} 37. Bg5 {[%clk 0:00:20]} 37... Rb4 {[%clk 0:00:11.7]} 38. Be3 {[%clk
0:00:17.5]} 38... Rxb5 {[%clk 0:00:11.5]} 39. Rc1 {[%clk 0:00:17.6]} 39... Rb2+
{[%clk 0:00:11.3]} 40. Kg3 {[%clk 0:00:17.2]} 40... Rb3 {[%clk 0:00:11.9]} 41.
Kf2 {[%clk 0:00:16.4]} 41... Rb2+ {[%clk 0:00:11.7]} 42. Kg3 {[%clk 0:00:16.4]}
42... Rb3 {[%clk 0:00:12.2]} 43. Re1 {[%clk 0:00:16.5]} 43... Kc6 {[%clk
0:00:11.7]} 44. Kf4 {[%clk 0:00:16.7]} 44... Kd6 {[%clk 0:00:10.4]} 45. Rc1
{[%clk 0:00:15.5]} 45... Rb4+ {[%clk 0:00:10.2]} 46. Kg3 {[%clk 0:00:15.5]}
46... Ke5 {[%clk 0:00:08.5]} 47. Bf2 {[%clk 0:00:11.8]} 47... Rb3 {[%clk
0:00:07.7]} 48. Re1+ {[%clk 0:00:12]} 48... Kf5 {[%clk 0:00:07.4]} 49. Re3
{[%clk 0:00:12.2]} 49... Rxe3 {[%clk 0:00:07.1]} 50. Bxe3 {[%clk 0:00:12.7]}
50... e5 {[%clk 0:00:06.8]} 51. f4 {[%clk 0:00:12.5]} 51... exf4+ {[%clk
0:00:06.8]} 52. Bxf4 {[%clk 0:00:12.1]} 1/2-1/2

[Event "*** Titled Tuesday Blitz"]
[Site "Chess.com"]
[Date "2020.12.29"]
[Round "8"]
[White "Tekushka"]
[Black "Piacramling"]
[Result "1/2-1/2"]
[WhiteElo "2407"]
[BlackElo "2247"]
[TimeControl "180+1"]
[EndTime "11:28:32 PST"]
[Termination "Game drawn by repetition"]

1. e4 {[%clk 0:01:54.8]} 1... c5 {[%clk 0:02:58.8]} 2. Nf3 {[%clk 0:01:54.4]}
2... a6 {[%clk 0:02:58.7]} 3. c3 {[%clk 0:01:54]} 3... d5 {[%clk 0:02:55.9]} 4.
exd5 {[%clk 0:01:53.2]} 4... Qxd5 {[%clk 0:02:55.9]} 5. d4 {[%clk 0:01:54.1]}
5... Nf6 {[%clk 0:02:55.9]} 6. Be3 {[%clk 0:01:53.5]} 6... cxd4 {[%clk
0:02:53.9]} 7. cxd4 {[%clk 0:01:54.4]} 7... e6 {[%clk 0:02:54.1]} 8. Nc3 {[%clk
0:01:54.3]} 8... Qd6 {[%clk 0:02:52.5]} 9. Bd3 {[%clk 0:01:52.9]} 9... Be7
{[%clk 0:02:52.1]} 10. O-O {[%clk 0:01:52.7]} 10... O-O {[%clk 0:02:52.1]} 11.
Bc2 {[%clk 0:01:49.1]} 11... b5 {[%clk 0:02:51.1]} 12. Qd3 {[%clk 0:01:47.2]}
12... Bb7 {[%clk 0:02:50]} 13. Ne5 {[%clk 0:01:47.2]} 13... Nc6 {[%clk
0:02:38.9]} 14. Ng4 {[%clk 0:01:42.6]} 14... g6 {[%clk 0:02:37]} 15. Nxf6+
{[%clk 0:01:41.6]} 15... Bxf6 {[%clk 0:02:36.3]} 16. Ne4 {[%clk 0:01:42.4]}
16... Qe7 {[%clk 0:02:33.3]} 17. Nxf6+ {[%clk 0:01:42.3]} 17... Qxf6 {[%clk
0:02:32.8]} 18. a3 {[%clk 0:01:40]} 18... Rfd8 {[%clk 0:02:32.2]} 19. Rad1
{[%clk 0:01:38.5]} 19... Rd7 {[%clk 0:02:28.9]} 20. Rd2 {[%clk 0:01:25]} 20...
Rad8 {[%clk 0:02:28]} 21. Rfd1 {[%clk 0:01:25.4]} 21... Ne7 {[%clk 0:02:23.9]}
22. Qe2 {[%clk 0:01:17.6]} 22... Nf5 {[%clk 0:02:21.8]} 23. Bxf5 {[%clk
0:01:15.3]} 23... exf5 {[%clk 0:02:12.7]} 24. f3 {[%clk 0:01:13.9]} 24... f4
{[%clk 0:02:07.9]} 25. Bf2 {[%clk 0:01:13.1]} 25... Bd5 {[%clk 0:02:06.2]} 26.
Re1 {[%clk 0:01:07.1]} 26... Rc8 {[%clk 0:01:58.5]} 27. Qd1 {[%clk 0:01:06.7]}
27... Rdc7 {[%clk 0:01:49.9]} 28. Qe2 {[%clk 0:01:03.8]} 28... Rc1 {[%clk
0:01:46.1]} 29. h4 {[%clk 0:01:02.6]} 29... Rxe1+ {[%clk 0:01:35.4]} 30. Qxe1
{[%clk 0:01:02.3]} 30... h5 {[%clk 0:01:31.4]} 31. Qe5 {[%clk 0:01:00.6]} 31...
Rc1+ {[%clk 0:01:14.5]} 32. Kh2 {[%clk 0:01:00.5]} 32... Qxe5 {[%clk 0:01:14.7]}
33. dxe5 {[%clk 0:01:00.5]} 33... Be6 {[%clk 0:01:14.8]} 34. Bd4 {[%clk
0:00:54.5]} 34... Rc4 {[%clk 0:00:57.7]} 35. Bc3 {[%clk 0:00:53.3]} 35... Kh7
{[%clk 0:00:55.1]} 36. Kg1 {[%clk 0:00:52.6]} 36... Ra4 {[%clk 0:00:46.2]} 37.
Kf2 {[%clk 0:00:51.3]} 37... a5 {[%clk 0:00:46.1]} 38. Rd8 {[%clk 0:00:46.9]}
38... b4 {[%clk 0:00:43.4]} 39. axb4 {[%clk 0:00:46]} 39... axb4 {[%clk
0:00:42.5]} 40. Rd4 {[%clk 0:00:41.5]} 40... Ra1 {[%clk 0:00:35.7]} 41. Rxb4
{[%clk 0:00:39.2]} 41... Rh1 {[%clk 0:00:35.2]} 42. Rxf4 {[%clk 0:00:38.9]}
42... Rd1 {[%clk 0:00:34.7]} 43. Rd4 {[%clk 0:00:34.4]} 43... Rb1 {[%clk
0:00:34.7]} 44. Rd2 {[%clk 0:00:33]} 44... Rh1 {[%clk 0:00:32.9]} 45. Kg3 {[%clk
0:00:32.1]} 45... Rb1 {[%clk 0:00:32.2]} 46. b4 {[%clk 0:00:31.3]} 46... Rb3
{[%clk 0:00:31.2]} 47. Rc2 {[%clk 0:00:29.5]} 47... Bf5 {[%clk 0:00:29.8]} 48.
Rc1 {[%clk 0:00:29.7]} 48... Be6 {[%clk 0:00:26.3]} 49. Kf4 {[%clk 0:00:29.7]}
49... Kh6 {[%clk 0:00:23.7]} 50. Ke3 {[%clk 0:00:28.4]} 50... Kh7 {[%clk
0:00:23.1]} 51. Kd4 {[%clk 0:00:28.2]} 51... Ra3 {[%clk 0:00:21.2]} 52. Ke3
{[%clk 0:00:22]} 52... Ra2 {[%clk 0:00:20.4]} 53. Bd2 {[%clk 0:00:20.1]} 53...
Rb2 {[%clk 0:00:19.2]} 54. Rc7 {[%clk 0:00:18.8]} 54... Rb3+ {[%clk 0:00:17.1]}
55. Kf2 {[%clk 0:00:18.6]} 55... Rb2 {[%clk 0:00:17.2]} 56. Ke3 {[%clk
0:00:18.8]} 56... Rb3+ {[%clk 0:00:17.3]} 57. Kf4 {[%clk 0:00:18.1]} 57... Rb2
{[%clk 0:00:16.8]} 58. Ke3 {[%clk 0:00:18]} 1/2-1/2

[Event "*** Titled Tuesday Blitz"]
[Site "Chess.com"]
[Date "2020.12.29"]
[Round "8"]
[White "Ural_bogatyr"]
[Black "maximnovik"]
[Result "1-0"]
[WhiteElo "2488"]
[BlackElo "2594"]
[TimeControl "180+1"]
[EndTime "11:28:36 PST"]
[Termination "Ural_bogatyr won by resignation"]

1. e4 {[%clk 0:03:00.9]} 1... c6 {[%clk 0:02:59.6]} 2. d4 {[%clk 0:03:00.7]}
2... d5 {[%clk 0:03:00.1]} 3. e5 {[%clk 0:03:01.2]} 3... Bf5 {[%clk 0:02:59.2]}
4. Ne2 {[%clk 0:03:01.6]} 4... e6 {[%clk 0:02:55.4]} 5. Ng3 {[%clk 0:03:02]}
5... Bg6 {[%clk 0:02:55.1]} 6. h4 {[%clk 0:03:02.4]} 6... h5 {[%clk 0:02:55]} 7.
Be2 {[%clk 0:03:02]} 7... Be7 {[%clk 0:02:53.4]} 8. Bxh5 {[%clk 0:02:57]} 8...
Bxh5 {[%clk 0:02:51.4]} 9. Nxh5 {[%clk 0:02:57.9]} 9... g6 {[%clk 0:02:51.3]}
10. Nf4 {[%clk 0:02:57.9]} 10... Rxh4 {[%clk 0:02:49.8]} 11. Rxh4 {[%clk
0:02:58.1]} 11... Bxh4 {[%clk 0:02:50.1]} 12. g3 {[%clk 0:02:59]} 12... Be7
{[%clk 0:02:48.5]} 13. Qg4 {[%clk 0:02:58.8]} 13... c5 {[%clk 0:02:46.8]} 14.
dxc5 {[%clk 0:02:39.4]} 14... Nc6 {[%clk 0:02:44.2]} 15. Nd3 {[%clk 0:02:27.8]}
15... Bxc5 {[%clk 0:02:14.9]} 16. Nxc5 {[%clk 0:02:12.2]} 16... Qa5+ {[%clk
0:02:13.6]} 17. b4 {[%clk 0:00:38.9]} 17... Nxb4 {[%clk 0:02:13.1]} 18. Nxb7
{[%clk 0:00:38.9]} 18... Nd3+ {[%clk 0:01:37.7]} 19. Ke2 {[%clk 0:00:39]} 19...
Qe1+ {[%clk 0:00:44.1]} 20. Kxd3 {[%clk 0:00:37.8]} 20... Qxe5 {[%clk
0:00:42.9]} 21. Qa4+ {[%clk 0:00:29.4]} 21... Kf8 {[%clk 0:00:37.2]} 22. Qb4+
{[%clk 0:00:29.4]} 22... Ne7 {[%clk 0:00:35.1]} 23. Bb2 {[%clk 0:00:28]} 23...
Qc7 {[%clk 0:00:30.7]} 24. Bf6 {[%clk 0:00:23.1]} 24... Re8 {[%clk 0:00:24.1]}
25. Nd6 {[%clk 0:00:20.4]} 25... Rb8 {[%clk 0:00:10.5]} 26. Nb5 {[%clk
0:00:20.6]} 26... Qd7 {[%clk 0:00:07.1]} 27. Qxe7+ {[%clk 0:00:19.3]} 27... Qxe7
{[%clk 0:00:06.1]} 28. Bxe7+ {[%clk 0:00:20.2]} 28... Kxe7 {[%clk 0:00:06.4]}
29. Nd4 {[%clk 0:00:20]} 29... e5 {[%clk 0:00:06.1]} 30. Ne2 {[%clk 0:00:19.8]}
30... Kd6 {[%clk 0:00:05.7]} 31. Nbc3 {[%clk 0:00:19.8]} 31... f5 {[%clk
0:00:05.8]} 32. Rb1 {[%clk 0:00:19.3]} 32... Rc8 {[%clk 0:00:06]} 33. Rb5 {[%clk
0:00:17.9]} 33... d4 {[%clk 0:00:05.9]} 34. Nd1 {[%clk 0:00:17.5]} 34... a6
{[%clk 0:00:04.4]} 35. Ra5 {[%clk 0:00:17.5]} 35... Rc6 {[%clk 0:00:03.8]} 36.
c3 {[%clk 0:00:17.8]} 36... dxc3 {[%clk 0:00:02.8]} 37. Ndxc3 {[%clk 0:00:17.3]}
37... e4+ {[%clk 0:00:03.3]} 38. Kd4 {[%clk 0:00:16.7]} 38... Ke6 {[%clk
0:00:03.4]} 39. Nf4+ {[%clk 0:00:16.4]} 39... Kf6 {[%clk 0:00:03.5]} 40. Nfd5+
{[%clk 0:00:16.7]} 40... Kg5 {[%clk 0:00:02.6]} 41. Na4 {[%clk 0:00:15.3]} 41...
Rc2 {[%clk 0:00:02.2]} 42. Nc5 {[%clk 0:00:13.7]} 42... Rxf2 {[%clk 0:00:02]}
43. Rxa6 {[%clk 0:00:14.1]} 43... Rd2+ {[%clk 0:00:02]} 44. Ke5 {[%clk
0:00:13.6]} 44... Rg2 {[%clk 0:00:02.3]} 45. Nf4 {[%clk 0:00:12.6]} 45... Rxg3
{[%clk 0:00:02.3]} 46. Rxg6+ {[%clk 0:00:13.1]} 46... Kh4 {[%clk 0:00:02.2]} 47.
Rxg3 {[%clk 0:00:13.1]} 47... Kxg3 {[%clk 0:00:02.4]} 48. Nxe4+ {[%clk
0:00:13.7]} 48... fxe4 {[%clk 0:00:02.1]} 49. Kxe4 {[%clk 0:00:14.6]} 49... Kg4
{[%clk 0:00:02.5]} 50. a4 {[%clk 0:00:14.8]} 50... Kg5 {[%clk 0:00:02.9]} 51.
Ke5 {[%clk 0:00:14.7]} 1-0